bitfinex/quotes_ETHUSD_20240621
["timestamp","ask_amount","ask_price","bid_price","bid_amount"]
[1718945336917,2.55941114,3519.2,3519.0,3.51472]
[1718945337113,2.55941526,3519.1,3519.0,3.51472]
[1718945339104,2.06718526,3519.7,3519.0,3.51472]
[1718945339306,2.55929391,3519.6,3519.0,3.51472]
[1718945339601,2.55929391,3519.5,3519.1,0.351472]
[1718945339941,2.55929391,3519.4,3519.2,0.873]
[1718945340104,2.55929391,3519.3,3519.2,0.873]
[1718945341537,0.49216986,3519.3,3519.2,0.873]
[1718945341834,2.5592833,3519.6,3519.2,0.873]
[1718945342027,2.5592833,3519.5,3519.2,0.873]
[1718945342226,2.5592833,3519.4,3519.3,0.31952]
[1718945343919,2.5592833,3519.4,3519.3,2.4432]
[1718945344644,2.55920754,3519.4,3519.3,2.4432]
[1718945344837,4.62619652,3519.4,3519.3,2.4432]
[1718945345221,2.06702398,3519.4,3519.3,2.4432]
[1718945345420,2.55917383,3519.4,3519.3,2.4432]
[1718945345641,4.62620326,3519.4,3519.3,2.4432]
[1718945345943,4.62620788,3519.4,3519.3,2.4432]
[1718945347843,2.06702398,3519.4,3519.3,2.4432]
[1718945348217,2.5591861,3519.4,3519.3,2.4432]
[1718945348419,4.62626705,3519.4,3519.3,2.4432]
[1718945350016,4.62626705,3519.4,3519.3,2.77482]
[1718945350217,4.62626705,3519.4,3519.3,5.77482]
[1718945350844,2.06702398,3519.4,3519.3,5.77482]
[1718945351050,4.13379877,3519.4,3519.3,5.77482]
[1718945351347,4.625888,3519.4,3519.3,5.77482]
[1718945351719,4.625888,3519.4,3519.3,5.82892]
[1718945353543,2.55886402,3519.4,3519.3,5.82892]
[1718945353948,2.4599,3520.5,3519.3,5.82892]
[1718945354152,2.55883389,3520.4,3519.7,0.873]
[1718945354315,2.55883389,3520.3,3519.7,0.873]
[1718945354661,2.55883348,3520.2,3520.0,0.873]
[1718945354844,2.55883348,3520.1,3520.0,0.873]
[1718945355251,2.55860988,3520.1,3520.0,0.873]
[1718945356923,0.28078556,3521.1,3520.0,0.873]
[1718945357126,5.01692812,3521.0,3520.0,0.873]
[1718945357452,2.55862812,3520.9,3520.2,0.873]
[1718945357659,2.55862812,3520.8,3520.2,0.873]
[1718945357952,2.55862812,3520.7,3520.2,0.873]
[1718945358155,2.55862812,3520.6,3520.2,0.873]
[1718945358343,2.55862812,3520.5,3520.2,0.873]
[1718945358659,2.55862812,3520.4,3520.2,0.873]
[1718945358960,2.55862812,3520.3,3520.2,0.873]
[1718945359336,2.55862812,3520.3,3520.2,1.77834]
[1718945359925,2.4583,3521.0,3520.2,1.77834]
[1718945360127,2.55853539,3520.9,3520.2,0.873]
[1718945360328,2.55853539,3520.8,3520.2,0.873]
[1718945360528,2.55853539,3520.7,3519.9,8.1804]
[1718945360724,2.55853539,3520.6,3520.1,0.873]
[1718945360962,2.4583,3521.0,3520.1,0.873]
[1718945360963,2.55853539,3520.5,3520.1,0.873]
[1718945361160,2.55853539,3520.4,3520.1,0.873]
[1718945361468,2.55853539,3520.3,3520.1,0.873]
[1718945361684,2.55853539,3520.2,3520.1,0.873]
[1718945362548,2.55853539,3520.2,3519.9,3.0]
[1718945362755,2.55853539,3520.1,3519.8,2.3936]
[1718945362957,2.4583,3521.0,3519.8,3.451]
[1718945363156,2.55848811,3520.9,3520.0,0.873]
[1718945363338,2.55848811,3520.8,3520.0,0.873]
[1718945363540,2.55840745,3520.7,3520.0,1.49601845]
[1718945363870,2.55840745,3520.6,3520.0,1.49601845]
[1718945364052,2.55840745,3520.5,3520.2,0.873]
[1718945364390,2.55837774,3520.4,3520.2,0.873]
[1718945364533,2.06638202,3520.3,3520.2,0.873]
[1718945364736,2.55837774,3520.3,3520.2,0.873]
[1718945364951,2.55837774,3520.3,3520.2,1.32260185]
[1718945365153,2.55837774,3520.3,3520.2,3.75450185]
[1718945365963,2.06638202,3520.3,3520.2,6.75450185]
[1718945366170,2.06627454,3520.3,3520.2,6.75450185]
[1718945366330,2.06627454,3521.1,3520.2,6.75450185]
[1718945366536,2.55823986,3521.0,3520.6,0.873]
[1718945366739,2.55823986,3520.9,3520.6,0.873]
[1718945366961,2.55823986,3520.8,3520.6,0.873]
[1718945367143,2.55823986,3520.7,3520.6,0.873]
[1718945367993,2.55823986,3520.7,3520.6,3.2172]
[1718945368158,2.55823986,3520.7,3520.6,3.83892]
[1718945369051,0.49192256,3520.7,3520.6,3.83892]
[1718945369259,2.55798735,3521.3,3520.6,3.83892]
[1718945369559,2.55798735,3521.2,3520.8,0.873]
[1718945369798,2.55798735,3521.1,3520.8,0.873]
[1718945369974,2.55798735,3521.0,3520.8,0.873]
[1718945370179,2.55798735,3520.9,3520.8,0.873]
[1718945371189,2.55798735,3520.9,3520.8,1.19472]
[1718945372163,2.3963,3521.4,3520.8,1.19472]
[1718945372368,2.5580281,3521.3,3520.8,0.873]
[1718945372569,2.3963,3521.4,3520.8,0.873]
[1718945372764,0.49192428,3521.2,3520.8,0.873]
[1718945372970,2.06608198,3521.1,3520.8,0.873]
[1718945373161,0.49192428,3521.0,3520.8,0.873]
[1718945373363,2.06609399,3520.9,3520.8,0.873]
[1718945373573,2.55802113,3520.9,3520.8,0.873]
[1718945375365,2.55805023,3520.9,3520.8,0.873]
[1718945378505,2.55800483,3520.9,3520.8,0.873]
[1718945381510,2.3963,3521.4,3520.8,0.873]
[1718945381697,2.55801749,3521.3,3520.9,0.05679728]
[1718945381903,2.55801749,3521.2,3520.9,0.05679728]
[1718945382112,2.3963,3521.4,3520.8,0.92979813]
[1718945382113,2.55797049,3521.1,3520.8,0.92979813]
[1718945382284,2.55797049,3521.0,3520.8,0.92979813]
[1718945382479,2.3963,3521.4,3520.8,0.873]
[1718945382480,2.55797049,3520.9,3520.8,0.873]
[1718945382680,2.55801436,3520.9,3520.8,0.873]
[1718945382917,2.55801436,3520.9,3520.8,1.20039981]
[1718945384812,2.55795349,3520.9,3520.8,1.20039981]
[1718945385380,0.49191413,3520.9,3520.8,1.20039981]
[1718945385678,2.5579453,3521.6,3520.8,1.20039981]
[1718945385880,2.5579453,3521.5,3521.1,0.873]
[1718945386081,2.5579453,3521.4,3521.1,0.873]
[1718945386278,2.5579453,3521.3,3521.1,0.873]
[1718945386483,2.5579453,3521.2,3521.1,0.873]
[1718945388019,2.55790163,3521.2,3521.1,0.873]
[1718945390999,2.06599341,3521.2,3521.1,0.873]
[1718945391322,2.4906,3521.7,3521.1,0.873]
[1718945391514,2.55789646,3521.6,3521.1,0.873]
[1718945391696,2.55789646,3521.5,3521.1,0.873]
[1718945391897,2.55789646,3521.4,3521.1,0.873]
[1718945392092,2.4906,3521.7,3521.1,0.873]
[1718945392093,2.55789977,3521.3,3521.1,0.873]
[1718945392311,2.55789977,3521.2,3521.1,0.873]
[1718945392926,2.55789977,3521.2,3520.8,0.32739981]
[1718945393107,2.55789977,3521.1,3521.0,0.873]
[1718945393936,2.22489977,3521.1,3521.0,0.873]
[1718945394144,2.06600743,3521.1,3521.0,0.873]
[1718945394659,2.06600743,3521.6,3521.0,0.873]
[1718945394942,2.06600743,3521.5,3521.0,0.873]
[1718945395266,2.06600743,3521.4,3521.0,0.873]
[1718945395560,2.06600743,3521.3,3521.0,0.873]
[1718945395705,2.06600743,3521.2,3521.0,0.873]
[1718945395910,2.06600743,3521.1,3521.0,0.873]
[1718945396652,2.06600743,3521.6,3521.0,0.873]
[1718945397362,2.06593858,3521.5,3521.2,0.873]
[1718945397649,2.06593858,3521.4,3521.2,0.873]
[1718945397854,2.06593858,3521.3,3521.2,0.873]
[1718945398235,2.06593858,3521.6,3521.2,0.873]
[1718945398561,2.06593858,3521.5,3521.2,0.873]
[1718945398707,2.06593858,3521.4,3521.2,0.873]
[1718945398911,2.06593858,3521.3,3521.2,0.873]
[1718945399353,2.06593858,3521.6,3521.2,0.873]
[1718945400357,2.06587941,3521.5,3521.2,0.873]
[1718945400566,2.06587941,3521.4,3521.2,0.873]
[1718945400718,2.4906,3521.7,3521.2,0.873]
[1718945400918,2.06587295,3521.6,3521.2,0.873]
[1718945401467,2.06588425,3521.5,3521.2,0.873]
[1718945401628,2.06588425,3521.4,3521.2,0.873]
[1718945401957,2.4906,3521.7,3521.2,0.873]
[1718945401958,2.06588425,3521.3,3521.2,0.873]
[1718945402748,2.06590743,3521.3,3521.2,0.873]
[1718945403319,2.4755,3521.5,3520.7,3.0]
[1718945403571,2.06590743,3521.4,3520.9,0.873]
[1718945403858,2.06590743,3521.4,3520.9,2.00909]
[1718945404768,2.06597682,3521.3,3520.9,2.00909]
[1718945404937,2.06597682,3521.2,3520.9,2.00909]
[1718945405137,2.06597682,3521.1,3520.9,2.00909]
[1718945405338,2.06597682,3521.0,3520.9,2.00909]
[1718945405536,2.06597682,3521.0,3520.9,0.873]
[1718945405737,2.06597682,3521.4,3520.9,0.873]
[1718945405918,2.4755,3521.5,3520.9,0.873]
[1718945406233,2.0659778,3521.4,3521.1,0.873]
[1718945406791,2.0659778,3521.4,3521.3,0.873]
[1718945407079,2.0659778,3521.4,3521.3,1.20524]
[1718945407222,2.0659778,3521.8,3521.3,1.20524]
[1718945407422,2.0659778,3521.7,3521.3,0.873]
[1718945407637,2.0659778,3521.6,3521.3,0.873]
[1718945407833,2.0659778,3521.5,3521.3,0.873]
[1718945408073,2.0659778,3521.4,3521.3,0.873]
[1718945408249,2.0659778,3521.4,3521.3,1.21091572]
[1718945408656,2.0659778,3521.8,3521.3,1.21091572]
[1718945408967,2.2677,3521.9,3521.3,0.873]
[1718945409119,2.06578731,3521.8,3521.5,0.873]
[1718945409326,2.3398,3522.6,3521.5,0.873]
[1718945409628,2.0655832,3522.5,3521.8,0.873]
[1718945409826,2.0655832,3522.4,3521.8,0.873]
[1718945410252,2.0655832,3522.3,3521.8,0.873]
[1718945410451,2.0655832,3522.2,3521.8,0.873]
[1718945410669,0.23398,3522.5,3521.8,0.873]
[1718945410670,2.0655832,3522.1,3521.8,0.873]
[1718945410819,2.0655832,3522.0,3521.3,3.0]
[1718945411020,4.4486832,3521.9,3521.6,0.873]
[1718945411266,2.0655832,3521.8,3521.6,0.873]
[1718945411978,2.3831,3521.9,3521.6,0.873]
[1718945412266,2.06558203,3521.8,3521.5,0.873]
[1718945412468,2.06558203,3521.8,3521.3,3.873]
[1718945412630,2.06558203,3521.8,3521.4,0.63676]
[1718945415029,2.3831,3521.9,3521.4,0.63676]
[1718945415230,2.06564489,3521.8,3521.4,0.63676]
[1718945416356,2.06564489,3521.7,3521.4,0.63676]
[1718945416565,2.06564489,3521.6,3521.4,0.63676]
[1718945416771,2.4638,3522.1,3521.5,0.700436]
[1718945416925,2.06561501,3522.0,3521.5,1.573436]
[1718945418035,2.4638,3522.1,3521.5,1.573436]
[1718945418371,2.06559926,3522.0,3521.5,1.573436]
[1718945418567,2.3229,3522.4,3521.5,1.573436]
[1718945418868,2.06560915,3522.3,3521.6,0.4573436]
[1718945419071,2.3229,3522.9,3521.9,0.873]
[1718945419072,2.06560915,3522.2,3521.9,0.873]
[1718945419258,2.3229,3522.9,3522.0,1.19437]
[1718945419448,2.06533871,3522.8,3522.0,0.873]
[1718945420878,2.06533871,3522.8,3521.8,9.0534]
[1718945421240,2.06531341,3522.7,3521.9,2.428]
[1718945421440,2.06531341,3522.6,3522.0,1.14814]
[1718945421643,2.06531341,3522.5,3522.0,1.14814]
[1718945421942,2.3229,3522.9,3522.0,1.14814]
[1718945421943,2.06531341,3522.4,3522.1,0.04314274]
[1718945422242,2.06531341,3522.3,3522.2,0.36192827]
[1718945422452,2.06531341,3522.8,3522.0,1.14814]
[1718945423187,2.93831341,3522.8,3522.0,1.14814]
[1718945423487,2.06531341,3522.7,3522.0,1.14814]
[1718945424188,0.873,3522.8,3522.0,1.14814]
[1718945424408,2.06533646,3522.7,3522.1,0.74512685]
[1718945427513,2.0653431,3522.6,3522.1,0.74512685]
[1718945427665,2.0653431,3522.5,3522.1,0.74512685]
[1718945427870,2.06535562,3522.4,3522.1,0.74512685]
[1718945428065,2.06535562,3522.3,3522.0,1.14814]
[1718945428292,2.06535562,3522.2,3522.0,1.14814]
[1718945428577,2.06536275,3522.1,3522.0,1.14814]
[1718945429479,2.06536275,3522.8,3522.0,1.14814]
[1718945429815,2.06536275,3522.7,3522.0,1.14814]
[1718945430101,0.873,3522.1,3521.4,5.1804]
[1718945430282,4.40886275,3522.0,3521.4,5.1804]
[1718945430479,2.3435,3522.0,3521.4,5.1804]
[1718945430668,2.06570259,3521.9,3521.4,5.1804]
[1718945430873,2.06570259,3521.9,3521.4,7.47075]
[1718945431680,2.06570259,3521.9,3521.4,5.1804]
[1718945432689,3.55,3523.2,3521.6,2.2598]
[1718945432690,2.06570259,3521.8,3521.6,2.2598]
[1718945432885,2.06570259,3521.7,3521.6,2.2598]
[1718945433112,2.06538489,3521.7,3521.6,2.2598]
[1718945433406,0.873,3522.4,3521.6,2.2598]
[1718945433607,2.06555061,3522.3,3521.6,2.2598]
[1718945435893,2.06555061,3522.2,3521.6,2.2598]
[1718945436481,0.873,3522.3,3521.6,2.2598]
[1718945436804,2.06556532,3522.2,3521.6,2.2598]
[1718945436994,0.873,3522.3,3521.6,2.2598]
[1718945437196,2.06556882,3522.2,3521.6,2.2598]
[1718945437795,2.06556347,3522.1,3521.6,2.2598]
[1718945438002,2.06556347,3522.0,3521.6,2.2598]
[1718945438309,2.06556347,3521.9,3521.6,2.2598]
[1718945438481,2.06556347,3521.8,3521.6,2.2598]
[1718945438807,2.06556347,3521.7,3521.6,2.2598]
[1718945439205,2.06556347,3522.4,3521.6,2.2598]
[1718945439411,2.06556347,3522.3,3521.6,2.2598]
[1718945439610,2.06556676,3522.2,3521.6,2.2598]
[1718945439913,2.06556676,3522.1,3521.6,2.2598]
[1718945440114,2.06556676,3522.0,3521.6,2.2598]
[1718945440291,2.06556676,3521.9,3521.6,2.2598]
[1718945440608,0.873,3522.5,3521.6,2.2598]
[1718945440800,2.4322,3522.3,3521.6,2.2598]
[1718945440999,2.06555313,3522.2,3521.6,2.2598]
[1718945442714,2.4322,3522.3,3521.6,2.2598]
[1718945442911,2.06557958,3522.2,3521.6,2.2598]
[1718945445788,2.4322,3522.3,3521.6,2.2598]
[1718945446114,2.06558339,3522.2,3521.6,2.2598]
[1718945446324,2.4322,3522.3,3521.6,2.2598]
[1718945446526,2.06558351,3522.2,3521.6,2.2598]
[1718945446995,2.4322,3522.3,3521.6,2.2598]
[1718945447192,2.06558372,3522.2,3521.6,2.2598]
[1718945448415,2.06558372,3522.1,3521.6,2.2598]
[1718945448589,2.06558372,3522.0,3521.6,2.2598]
[1718945448921,0.873,3522.7,3521.7,0.873]
[1718945449100,2.06542913,3522.6,3521.8,0.61328]
[1718945449418,2.06542913,3522.5,3521.9,2.4302]
[1718945449584,2.06542913,3522.4,3522.0,0.691648]
[1718945449780,2.06542913,3522.3,3522.0,0.691648]
[1718945450093,2.06542913,3522.2,3521.9,2.4302]
[1718945450287,0.55,3523.2,3521.9,2.4302]
[1718945450288,2.06542913,3522.1,3521.9,2.4302]
[1718945450495,2.4562,3523.1,3521.9,3.93352]
[1718945450496,2.06542913,3522.0,3521.9,3.93352]
[1718945450996,2.06542913,3523.0,3521.9,4.50332]
[1718945451196,2.06542913,3522.9,3521.9,0.873]
[1718945451406,2.06542913,3522.8,3521.9,0.873]
[1718945451721,2.06542913,3522.7,3522.0,2.3167]
[1718945451923,2.06542913,3522.6,3522.1,1.19197]
[1718945452123,2.06518221,3522.5,3522.1,1.19197]
[1718945452287,2.06518221,3522.4,3522.2,0.350867]
[1718945452484,3.3292,3523.1,3522.2,0.350867]
[1718945452485,2.06518221,3522.3,3522.2,0.350867]
[1718945452883,2.06518221,3523.0,3522.2,0.350867]
[1718945453116,2.06516334,3522.9,3522.3,0.3540567]
[1718945453323,2.06516334,3522.8,3522.3,0.3540567]
[1718945453521,2.06516334,3522.7,3522.3,0.3540567]
[1718945453740,2.06516334,3522.6,3522.3,0.3540567]
[1718945453892,3.3292,3523.1,3522.3,0.3540567]
[1718945453893,2.06516334,3522.5,3522.3,0.3540567]
[1718945454093,2.06516334,3522.4,3522.3,0.3540567]
[1718945454620,2.06516334,3523.0,3522.3,0.3540567]
[1718945454924,2.06516334,3522.9,3522.3,0.3540567]
[1718945455115,3.3292,3523.1,3522.3,0.3540567]
[1718945455428,2.06519645,3523.0,3522.3,0.3540567]
[1718945455638,3.3292,3523.1,3522.3,0.3540567]
[1718945455932,2.06519599,3523.0,3522.3,0.3540567]
[1718945456232,2.06519599,3522.9,3522.3,0.3540567]
[1718945456405,2.06519574,3522.8,3522.3,0.3540567]
[1718945456595,2.06519574,3522.7,3522.3,0.3540567]
[1718945456926,2.06519574,3522.6,3522.3,0.3540567]
[1718945457231,2.06519574,3522.5,3522.3,0.3540567]
[1718945457396,2.06519574,3522.4,3522.3,0.3540567]
[1718945457614,2.06519574,3523.0,3522.3,2.3876]
[1718945457814,2.06519574,3522.9,3522.3,2.3876]
[1718945458025,2.06519574,3522.8,3522.4,0.32606]
[1718945458226,2.4562,3523.1,3522.4,0.32606]
[1718945458423,2.93820939,3523.0,3522.5,0.271366]
[1718945458631,2.06520939,3522.9,3522.5,0.271366]
[1718945458831,2.06520939,3522.8,3522.5,0.271366]
[1718945459044,2.06520939,3522.7,3522.5,0.271366]
[1718945459221,2.06520939,3522.6,3522.5,0.271366]
[1718945459716,2.06520939,3522.9,3522.5,0.271366]
[1718945459913,2.06520939,3522.8,3522.5,0.271366]
[1718945460141,2.06520939,3522.7,3522.5,0.271366]
[1718945460343,2.06520939,3522.6,3522.5,0.271366]
[1718945460585,2.06523834,3522.6,3522.5,0.271366]
[1718945460875,2.06523834,3522.9,3522.5,0.271366]
[1718945461029,0.873,3523.0,3522.5,0.271366]
[1718945461030,2.06530187,3522.8,3522.5,0.271366]
[1718945461343,0.873,3523.0,3522.5,0.271366]
[1718945461344,2.06530187,3522.7,3522.5,0.271366]
[1718945461567,2.06530187,3522.6,3522.5,0.271366]
[1718945461911,2.06530187,3522.9,3522.5,0.271366]
[1718945462116,0.873,3523.0,3522.5,0.271366]
[1718945462117,2.06530187,3522.8,3522.5,0.271366]
[1718945462314,2.06530187,3522.7,3522.5,0.271366]
[1718945462546,2.06530187,3522.6,3522.5,0.271366]
[1718945462750,2.06530187,3522.6,3522.3,2.3876]
[1718945462943,2.06530187,3522.5,3522.3,2.3876]
[1718945463149,2.06530187,3522.4,3522.3,2.3876]
[1718945463314,2.06530187,3522.9,3522.3,2.62636]
[1718945463525,0.873,3523.0,3522.3,2.62636]
[1718945463735,2.06526762,3522.9,3522.3,2.62636]
[1718945463947,2.06526762,3522.8,3522.3,2.62636]
[1718945464125,0.873,3523.0,3522.3,2.62636]
[1718945464327,2.06526376,3522.9,3522.3,2.62636]
[1718945464528,2.06526376,3522.8,3522.3,2.62636]
[1718945464864,0.873,3523.0,3522.3,2.3876]
[1718945466127,2.06528039,3522.7,3522.3,2.3876]
[1718945466322,0.873,3523.0,3522.3,2.3876]
[1718945466557,0.873,3523.0,3522.4,0.23876]
[1718945467040,0.1202878,3523.3,3522.7,2.4975]
[1718945467246,0.1202878,3523.3,3522.8,0.873]
[1718945469848,0.1202878,3523.3,3522.8,3.873]
[1718945470277,0.1202878,3523.3,3523.2,3.1965]
[1718945470440,0.1202878,3523.3,3523.2,3.51615]
[1718945475170,0.14547485,3523.3,3523.2,3.51615]
[1718945475334,0.1202878,3523.3,3523.2,3.51615]
[1718945478557,0.1202878,3523.3,3523.2,0.31965]
[1718945478769,0.1202878,3523.3,3522.8,5.2562]
[1718945478943,0.1202878,3523.3,3522.9,3.0]
[1718945479145,0.02589809,3523.2,3522.9,3.0]
[1718945479347,2.33089809,3523.2,3522.5,2.2562]
[1718945479547,2.06493258,3523.1,3522.6,1.640536]
[1718945479776,0.02589057,3523.0,3522.6,4.640536]
[1718945479960,0.1202878,3523.3,3522.6,4.640536]
[1718945480157,0.1202878,3523.3,3522.7,0.7135496]
[1718945488991,0.1202878,3523.3,3522.4,0.23876]
[1718945488992,0.873,3523.0,3522.4,0.23876]
[1718945489149,2.4257,3522.9,3522.4,3.0]
[1718945493686,2.4257,3522.9,3522.1,3.873]
[1718945495010,2.4257,3522.9,3522.1,3.0]
[1718945495288,2.3587,3522.5,3522.0,17.4604]
[1718945495587,2.3587,3522.5,3521.6,5.1804]
[1718945496581,2.3587,3522.5,3521.7,3.0]
[1718945501275,2.3587,3522.5,3521.9,0.873]
[1718945501477,0.1202878,3523.3,3522.1,0.873]
[1718945501478,2.4656,3523.2,3522.1,0.873]
[1718945501792,0.02508943,3523.1,3522.1,0.873]
[1718945501982,0.02508943,3523.1,3522.2,0.05677123]
[1718945502301,0.873,3523.0,3522.1,0.873]
[1718945502482,0.873,3523.0,3522.2,0.14954]
[1718945502680,2.2824,3522.8,3522.2,0.14954]
[1718945503197,0.02519854,3522.7,3522.2,0.14954]
[1718945505611,2.2824,3522.8,3522.2,0.14954]
[1718945506098,0.02522488,3522.7,3522.0,0.6224]
[1718945506666,1.97462488,3522.8,3522.0,0.6224]
[1718945508285,1.97462488,3522.8,3522.0,1.4954]
[1718945512286,3.2547,3523.1,3522.1,2.4577]
[1718945512535,3.2547,3523.1,3522.2,0.39531]
[1718945512689,3.2547,3523.1,3522.2,3.39531]
[1718945513010,0.873,3522.9,3522.2,2.34139]
[1718945513223,0.873,3522.9,3521.9,0.873]
[1718945513516,0.873,3522.9,3522.0,0.31797]
[1718945514070,2.4815,3522.8,3522.0,0.31797]
[1718945516605,2.4815,3522.7,3521.9,3.0]
[1718945516930,2.4815,3522.7,3521.7,3.0]
[1718945516931,0.873,3522.6,3521.7,3.0]
[1718945517072,0.873,3522.6,3521.8,0.90534]
[1718945517574,0.873,3522.4,3521.7,3.0]
[1718945517814,2.4815,3522.3,3521.7,3.0]
[1718945518031,2.4815,3522.3,3521.6,5.1804]
[1718945518032,0.873,3522.2,3521.6,5.1804]
[1718945518391,0.873,3522.2,3521.2,20.4604]
[1718945518687,0.873,3522.2,3521.3,3.0]
[1718945519303,0.873,3522.2,3521.3,3.873]
[1718945520300,0.873,3522.2,3521.3,3.0]
[1718945521207,3.1192878,3523.3,3521.3,3.0]
[1718945521208,2.4815,3521.9,3521.3,3.0]
[1718945521395,0.24815,3521.8,3521.3,3.0]
[1718945521597,2.4815,3521.9,3521.3,3.0]
[1718945521922,2.4815,3521.9,3521.2,5.1804]
[1718945522815,3.3545,3521.9,3521.2,5.1804]
[1718945523217,3.3545,3521.9,3520.9,9.0534]
[1718945525894,2.4815,3521.9,3521.1,0.873]
[1718945526119,2.4815,3521.9,3521.2,0.99264]
[1718945527222,3.3545,3521.9,3521.0,0.873]
[1718945527518,3.3545,3521.9,3520.9,9.0534]
[1718945528494,2.4815,3521.9,3520.9,9.0534]
[1718945528699,2.4815,3521.9,3521.0,2.4812]
[1718945528899,2.4815,3521.9,3521.1,1.15346]
[1718945529126,2.4815,3521.9,3521.1,5.02646]
[1718945530696,2.4815,3521.9,3521.1,2.02646]
[1718945533290,2.4815,3521.9,3521.1,1.15346]
[1718945540009,0.873,3521.7,3521.0,3.0]
[1718945540215,2.4003,3521.5,3521.0,3.0]
[1718945540415,2.06586571,3521.4,3521.0,3.0]
[1718945540825,2.06586571,3521.4,3520.6,3.873]
[1718945541026,2.06586571,3521.4,3520.7,0.85265]
[1718945541233,2.4003,3521.5,3520.7,0.85265]
[1718945541421,2.06599169,3521.4,3520.7,0.85265]
[1718945542517,2.06599169,3521.4,3520.8,0.873]
[1718945542719,2.06599169,3521.4,3520.8,1.863605]
[1718945542920,2.06599169,3521.4,3520.8,4.863605]
[1718945543337,2.06599169,3521.4,3520.8,1.863605]
[1718945544444,2.06598494,3521.3,3520.8,1.863605]
[1718945544626,2.06598494,3521.2,3520.8,1.863605]
[1718945544823,2.4003,3521.5,3520.8,1.863605]
[1718945545148,2.0659849,3521.4,3520.8,1.863605]
[1718945545546,2.4003,3521.5,3520.8,1.863605]
[1718945545844,1.73297748,3521.4,3520.8,1.863605]
[1718945546036,1.73297748,3521.4,3520.9,0.4863605]
[1718945547669,2.4003,3521.5,3520.9,0.4863605]
[1718945549577,2.4003,3521.5,3520.6,3.0]
[1718945549578,0.873,3521.4,3520.6,3.0]
[1718945549714,0.873,3521.2,3520.6,3.0]
[1718945549914,2.4134,3521.1,3520.6,3.0]
[1718945550164,2.4134,3521.1,3520.6,3.81804]
[1718945551220,2.4134,3521.1,3520.6,3.0]
[1718945552759,2.4134,3521.1,3520.3,3.0]
[1718945552926,2.4134,3521.1,3520.3,3.873]
[1718945553625,2.4134,3521.1,3520.3,3.0]
[1718945556921,2.4134,3521.1,3520.3,4.14904]
[1718945557129,2.4134,3521.1,3520.3,5.02204]
[1718945559945,2.314,3521.4,3520.5,0.873]
[1718945561265,0.873,3521.3,3520.3,5.02204]
[1718945561434,2.3712,3521.2,3520.3,3.873]
[1718945564260,2.3712,3521.2,3520.3,3.0]
[1718945565173,2.3712,3521.2,3520.3,3.873]
[1718945565770,1.74067567,3521.1,3520.3,3.873]
[1718945565959,1.74067567,3521.1,3520.4,0.90534]
[1718945566161,1.74067774,3521.0,3520.4,0.90534]
[1718945566331,1.74067774,3520.9,3520.4,0.90534]
[1718945566537,1.74067774,3520.8,3520.4,0.90534]
[1718945566839,1.74067774,3520.7,3520.4,0.90534]
[1718945567064,1.74067774,3520.6,3520.5,0.995874]
[1718945567264,1.74067774,3521.1,3520.5,0.995874]
[1718945567459,1.74067774,3521.0,3520.4,3.0]
[1718945567681,1.74067774,3521.0,3520.3,0.873]
[1718945567682,1.74067774,3520.9,3520.3,0.873]
[1718945567838,1.74067774,3520.8,3520.3,0.873]
[1718945568150,1.74067774,3520.7,3520.4,0.3873]
[1718945568469,1.74067774,3520.6,3520.4,0.3873]
[1718945568767,1.74067774,3520.5,3520.3,0.873]
[1718945569074,1.74067774,3520.4,3520.3,0.873]
[1718945569240,1.74067006,3520.4,3520.3,0.873]
[1718945569434,1.74067006,3520.4,3520.3,1.50004]
[1718945569641,1.74067006,3521.1,3520.3,1.50004]
[1718945569839,1.74067006,3521.0,3520.3,0.873]
[1718945570133,1.74067006,3520.9,3520.3,0.873]
[1718945570335,1.74067539,3520.8,3520.3,0.873]
[1718945570642,1.74067539,3520.7,3520.3,0.873]
[1718945570837,2.4417,3520.5,3520.1,3.0]
[1718945571044,1.74067539,3520.4,3520.0,3.873]
[1718945571247,1.74067539,3520.4,3520.2,0.873]
[1718945572476,1.74081117,3520.3,3520.2,0.873]
[1718945572789,2.4417,3520.5,3520.0,3.0]
[1718945572977,2.4417,3520.5,3520.1,1.93637]
[1718945572978,1.74081101,3520.4,3520.1,1.93637]
[1718945573545,1.74079588,3520.3,3520.1,1.93637]
[1718945573743,1.74079588,3520.2,3520.1,1.93637]
[1718945574156,1.74079588,3520.8,3520.1,1.93637]
[1718945574355,1.74079588,3520.8,3520.2,0.89193045]
[1718945574561,1.74079588,3520.8,3520.4,2.4533]
[1718945574819,1.74079588,3520.7,3520.4,5.4533]
[1718945574960,2.4417,3521.2,3520.4,5.4533]
[1718945574961,1.74079588,3520.6,3520.4,5.4533]
[1718945575309,2.4417,3521.2,3520.4,5.4533]
[1718945575519,2.4417,3521.2,3520.4,6.17512305]
[1718945575520,1.74066928,3520.5,3520.4,6.17512305]
[1718945576598,1.74066928,3520.5,3520.4,7.04812305]
[1718945576798,1.74066928,3521.1,3520.4,7.04812305]
[1718945577094,1.74066928,3521.0,3520.4,6.17512305]
[1718945577262,1.74066928,3520.9,3520.4,6.17512305]
[1718945577462,1.74066928,3520.8,3520.4,6.17512305]
[1718945577701,1.74066928,3520.7,3520.4,6.17512305]
[1718945577871,1.74066928,3520.6,3520.4,5.4533]
[1718945578071,1.74066928,3520.5,3520.4,5.4533]
[1718945578467,2.4417,3521.2,3520.4,5.4533]
[1718945578810,1.74072926,3521.1,3520.4,5.4533]
[1718945579015,1.74072926,3521.1,3520.4,6.17512305]
[1718945579297,1.74072926,3521.1,3520.5,0.873]
[1718945581055,2.4417,3521.2,3520.5,0.873]
[1718945581667,2.4925,3521.6,3520.5,0.873]
[1718945583392,2.4925,3521.6,3520.7,0.873]